bitfinex/quotes_ETHUSD_20250626
["timestamp","ask_amount","ask_price","bid_price","bid_amount"]
[1750958971033,0.2056,2426.3,2426.0,4.4591]
[1750958971236,1.19176025,2426.3,2426.0,4.4591]
[1750958971551,0.2056,2426.3,2426.0,4.4591]
[1750958971732,1.19176025,2426.3,2426.0,4.4591]
[1750958971932,0.2056,2426.3,2426.0,4.4591]
[1750958972135,1.19176025,2426.3,2426.0,4.4591]
[1750958972379,0.2056,2426.3,2426.0,4.4591]
[1750958972551,1.19176025,2426.3,2426.0,4.4591]
[1750958972752,0.2056,2426.3,2426.0,4.4591]
[1750958973079,1.19176025,2426.3,2426.0,4.4591]
[1750958973375,0.2056,2426.3,2426.0,4.4591]
[1750958973536,1.19176025,2426.3,2426.0,4.4591]
[1750958973733,0.2056,2426.3,2426.0,4.4591]
[1750958973936,1.19176025,2426.3,2426.1,3.689]
[1750958974172,0.2056,2426.3,2426.1,3.689]
[1750958974361,1.19176025,2426.3,2426.1,3.689]
[1750958974564,0.2056,2426.3,2426.1,3.689]
[1750958974764,1.19176025,2426.3,2426.1,3.689]
[1750958974941,0.2056,2426.3,2426.1,3.689]
[1750958975786,1.19176025,2426.3,2426.1,3.689]
[1750958975973,0.2056,2426.3,2426.1,3.689]
[1750958976363,2.31103628,2426.3,2426.1,3.689]
[1750958978862,6.747,2426.2,2426.1,3.689]
[1750958981019,23.203232,2426.2,2426.1,3.689]
[1750958981306,19.08156025,2426.2,2426.1,3.689]
[1750958981511,23.203232,2426.2,2426.1,3.689]
[1750958981707,26.92443659,2426.2,2426.1,3.689]
[1750958982165,22.80276484,2426.2,2426.1,3.689]
[1750958982366,26.92443659,2426.2,2426.1,3.689]
[1750958984293,22.80276484,2426.2,2426.1,3.689]
[1750958984492,21.45236484,2426.2,2426.1,3.689]
[1750958986623,14.70736484,2426.2,2426.1,3.689]
[1750958986948,17.73116025,2426.2,2426.1,3.689]
[1750958991972,17.73116025,2426.2,2426.1,4.4633]
[1750958992190,0.98616025,2426.2,2426.1,4.4633]
[1750958992348,6.9506,2426.3,2426.1,4.4633]
[1750958992549,7.93676025,2426.3,2426.1,4.4633]
[1750958992753,6.9506,2426.3,2426.1,4.90963]
[1750958993632,0.2056,2426.3,2426.1,4.90963]
[1750958995176,0.2056,2426.3,2426.2,3.689]
[1750958995343,6.745,2426.5,2426.2,3.689]
[1750958995548,7.73116025,2426.5,2426.3,0.490963]
[1750958996283,0.98716025,2426.5,2426.3,0.490963]
[1750958996580,0.001,2426.5,2426.3,0.490963]
[1750959000588,0.001,2426.5,2426.4,3.689]
[1750959001149,0.001,2426.5,2426.4,4.4533]
[1750959004253,0.001,2426.5,2426.4,3.689]
[1750959016189,0.8142,2426.5,2426.4,3.689]
[1750959018100,0.2066,2426.5,2426.4,3.689]
[1750959020814,0.99982979,2426.5,2426.4,3.689]
[1750959021001,1.98552767,2426.5,2426.4,3.689]
[1750959021197,0.99982979,2426.5,2426.4,3.689]
[1750959021513,1.98552767,2426.5,2426.4,3.689]
[1750959022200,1.19229788,2426.5,2426.4,3.689]
[1750959039266,0.2066,2426.5,2426.4,4.4811]
[1750959039473,0.001,2426.5,2426.4,4.4811]
[1750959039679,0.001,2426.5,2426.4,4.6867]
[1750959039848,0.001,2426.5,2426.4,7.20577361]
[1750959041764,0.001,2426.5,2426.4,21.32710562]
[1750959043035,0.001,2426.5,2426.4,17.20577361]
[1750959043849,0.001,2426.5,2426.4,25.69077361]
[1750959044747,0.001,2426.5,2426.4,38.37449492]
[1750959045550,0.001,2426.7,2426.6,14.90249233]
[1750959045750,0.001,2427.4,2427.3,3.684]
[1750959045958,0.001,2427.4,2427.3,12.9271]
[1750959046939,0.001,2427.4,2427.3,6.1941]
[1750959047144,0.001,2427.4,2427.3,5.435]
[1750959047544,0.001,2427.4,2427.3,3.684]
[1750959048566,0.001,2427.4,2427.0,5.435]
[1750959048765,0.001,2427.4,2427.1,3.684]
[1750959049879,0.001,2427.4,2426.9,1.751]
[1750959051265,0.001,2427.4,2427.0,0.8051]
[1750959053666,0.001,2427.4,2427.1,3.684]
[1750959055083,0.001,2427.4,2427.2,1.75]
[1750959055586,0.001,2427.4,2427.2,2.37391]
[1750959057152,0.001,2427.4,2427.3,3.684]
[1750959057387,0.001,2427.4,2427.3,4.7079]
[1750959059188,0.001,2427.4,2427.3,6.4559]
[1750959065513,0.001,2427.5,2427.4,3.683]
[1750959065714,0.001,2427.5,2427.4,9.59561238]
[1750959066012,0.001,2427.5,2427.4,5.68157821]
[1750959071485,1.0273,2428.1,2427.6,3.682]
[1750959071686,1.0273,2428.1,2427.7,3.682]
[1750959072028,0.8156,2428.0,2427.7,5.429]
[1750959072319,0.2056,2427.9,2427.7,5.429]
[1750959073342,0.2056,2427.9,2427.7,3.682]
[1750959073644,14.66895543,2427.8,2427.7,3.682]
[1750959073843,14.66895543,2427.8,2427.3,7.82]
[1750959073844,0.7555,2427.6,2427.4,3.682]
[1750959074001,0.7555,2427.6,2426.9,1.747]
[1750959074002,0.7555,2427.2,2427.0,3.682]
[1750959074208,0.7555,2427.2,2427.1,3.682]
[1750959074802,0.7555,2427.2,2426.9,1.747]
[1750959074803,0.7555,2427.6,2426.9,1.747]
[1750959075008,0.2056,2427.4,2427.0,0.62074]
[1750959075844,0.2056,2427.4,2426.9,8.6796]
[1750959078050,0.7997,2427.3,2426.9,0.2056]
[1750959078354,0.2056,2427.2,2427.0,1.748]
[1750959078650,1.78550152,2427.6,2427.0,6.6766591]
[1750959078848,0.2056,2427.7,2427.2,0.2056]
[1750959079039,1.19140152,2427.7,2427.3,3.682]
[1750959079239,0.2056,2427.7,2427.4,3.682]
[1750959079443,1.78550152,2427.8,2427.4,3.682]
[1750959079645,0.7997,2427.8,2427.4,3.682]
[1750959080150,0.2056,2427.6,2427.4,3.682]
[1750959083238,0.2056,2427.6,2427.5,3.682]
[1750959085642,0.7997,2427.8,2427.5,3.682]
[1750959085849,1.0053,2427.8,2427.5,3.682]
[1750959086284,1.99110152,2427.8,2427.5,3.682]
[1750959086583,1.0053,2427.8,2427.5,3.682]
[1750959087080,0.2056,2427.8,2427.5,5.0479]
[1750959087432,0.98580152,2428.0,2427.5,5.0479]
[1750959087640,1.19140152,2428.0,2427.6,0.2056]
[1750959087863,0.2056,2428.0,2427.6,0.2056]
[1750959089147,0.2056,2428.0,2427.7,3.682]
[1750959089347,0.2056,2428.0,2427.8,3.682]
[1750959090766,0.2056,2428.0,2427.9,3.682]
[1750959090967,0.001,2428.5,2427.9,4.4701]
[1750959090968,0.98580152,2428.4,2427.9,4.4701]
[1750959091267,0.98580152,2428.4,2427.9,4.6757]
[1750959091850,0.98580152,2428.4,2428.0,3.682]
[1750959092055,0.9943,2428.5,2428.0,1.746]
[1750959092056,0.98580152,2428.3,2428.0,1.746]
[1750959092253,0.2056,2428.2,2428.0,1.746]
[1750959094274,0.2056,2428.2,2427.8,3.682]
[1750959094473,0.2056,2428.2,2427.9,1.745]
[1750959096674,0.9601,2428.2,2427.9,1.745]
[1750959097679,0.9601,2428.2,2427.7,0.2056]
[1750959097842,0.7545,2428.2,2427.6,5.427]
[1750959098057,0.2056,2428.0,2427.6,6.25188]
[1750959101377,0.7811,2427.9,2427.6,3.8876]
[1750959101692,0.9867,2427.9,2427.6,3.682]
[1750959102081,0.7676,2427.8,2427.2,5.427]
[1750959102259,0.2056,2427.7,2427.2,5.6326]
[1750959102457,8.54650801,2427.6,2427.0,3.682]
[1750959102685,0.2056,2427.4,2427.0,5.427]
[1750959103300,0.8283,2427.4,2427.0,5.427]
[1750959103499,0.2056,2427.2,2427.0,5.427]
[1750959103680,0.2056,2427.2,2427.1,3.682]
[1750959105318,10.0,2427.1,2426.6,3.682]
[1750959105469,10.0,2427.1,2426.3,0.8213]
[1750959105470,0.7541,2426.6,2426.3,0.002]
[1750959105673,12.6841608,2426.6,2426.3,0.002]
[1750959105875,17.78980504,2426.6,2426.3,0.002]
[1750959106327,18.33980504,2426.6,2426.3,0.002]
[1750959107408,17.35515313,2426.6,2426.3,0.002]
[1750959107587,17.56394388,2426.6,2426.3,0.002]
[1750959107917,18.33774456,2426.6,2426.3,0.002]
[1750959109018,4.12133201,2426.4,2426.3,0.002]
[1750959109173,34.36478965,2426.4,2426.3,0.002]
[1750959109367,10.7802,2425.8,2425.3,1.746]
[1750959109610,0.2056,2425.4,2425.3,1.746]
[1750959111114,0.7802,2425.8,2425.3,1.746]
[1750959111115,6.9316,2425.6,2425.3,1.746]
[1750959111318,0.2056,2425.6,2425.3,1.746]
[1750959112711,0.2056,2425.5,2425.3,1.746]
[1750959115902,0.7802,2425.8,2425.4,3.682]
[1750959116107,6.727,2425.8,2425.5,4.4508]
[1750959116315,0.2056,2425.9,2425.5,4.6564]
[1750959120695,6.728,2426.2,2425.5,4.4508]
[1750959120892,0.2056,2426.1,2425.7,0.2056]
[1750959121097,0.2056,2426.0,2425.5,4.6564]
[1750959121741,0.2056,2426.0,2425.6,3.682]
[1750959121930,10.0,2426.1,2425.6,3.682]
[1750959122232,0.2056,2425.8,2425.6,3.682]
[1750959122536,6.9336,2426.1,2425.7,0.2056]
[1750959123716,6.728,2426.1,2425.6,3.682]
[1750959123913,0.2056,2426.0,2425.6,3.682]
[1750959124093,0.89896,2426.0,2425.6,3.682]
[1750959124927,0.69336,2426.0,2425.6,3.682]
[1750959125131,0.2056,2425.8,2425.6,3.682]
[1750959125428,1.023,2425.8,2425.6,3.682]
[1750959126647,0.2056,2425.8,2425.6,3.682]
[1750959126854,6.728,2425.9,2425.6,4.8332]
[1750959127016,0.2056,2425.9,2425.6,4.8332]
[1750959127723,0.2056,2425.9,2425.7,3.682]
[1750959133649,0.2056,2425.9,2425.8,3.682]
[1750959135554,1.18897609,2425.9,2425.8,3.682]
[1750959136959,1.18897609,2425.9,2425.6,0.783]
[1750959137154,0.98693607,2425.8,2425.6,0.783]
[1750959139163,8.51643607,2425.8,2425.5,0.2056]
[1750959139333,0.2056,2425.6,2425.2,2.5452]
[1750959139533,0.2056,2425.5,2425.2,2.5452]
[1750959141667,0.2056,2425.5,2425.2,1.745]
[1750959141845,0.86561129,2425.5,2425.0,0.2056]
[1750959142245,0.2056,2425.5,2425.0,0.2056]
[1750959142445,0.2056,2425.5,2425.1,1.745]
[1750959144765,1.19337769,2425.5,2425.1,1.745]
[1750959144966,0.2056,2425.5,2425.1,1.745]
[1750959145171,1.19337769,2425.5,2425.1,1.745]
[1750959145340,0.2056,2425.5,2425.1,1.745]
[1750959145534,1.19337769,2425.5,2425.1,1.745]
[1750959145740,0.2056,2425.5,2425.1,1.745]
[1750959146142,0.7668873,2425.5,2425.1,1.745]
[1750959146872,0.2056,2425.5,2425.1,1.745]
[1750959148673,1.19312261,2425.5,2425.1,1.745]
[1750959148876,0.2056,2425.5,2425.1,1.745]
[1750959149080,0.98752261,2425.5,2425.2,0.7653]
[1750959149262,16.9326,2425.7,2425.2,0.9709]
[1750959149446,6.9326,2425.7,2425.2,0.9709]
[1750959149646,7.91999757,2425.7,2425.2,0.9709]
[1750959150080,0.98736656,2426.0,2425.3,0.7653]
[1750959150268,1.19296656,2425.9,2425.6,0.7653]
[1750959150472,0.2056,2425.9,2425.6,0.7653]
[1750959150674,0.7934,2425.8,2425.5,0.2056]
[1750959150897,1.78072533,2425.8,2425.6,3.682]
[1750959151076,0.2056,2425.7,2425.6,3.682]
[1750959151450,1.19301346,2425.7,2425.6,3.682]
[1750959152159,1.80387753,2425.7,2425.6,3.682]
[1750959152370,8.53087753,2425.7,2425.6,3.682]
[1750959154182,18.53087753,2425.7,2425.6,3.682]
[1750959154690,22.65339886,2425.7,2425.6,3.682]
[1750959154864,18.53087753,2425.7,2425.6,3.682]
[1750959156184,19.35907753,2425.7,2425.6,3.682]
[1750959159065,19.90907753,2425.7,2425.3,3.682]
[1750959159255,0.7824,2425.4,2425.3,3.682]
[1750959159588,12.61884471,2425.4,2425.3,3.682]
[1750959159753,0.988,2425.3,2425.0,3.682]
[1750959159953,5.11078472,2425.2,2425.1,3.682]
[1750959160179,13.66165227,2425.2,2425.1,3.682]
[1750959161679,0.98741346,2425.2,2425.1,3.682]
[1750959162174,11.76981346,2425.3,2425.1,3.682]
[1750959162379,6.727,2425.2,2425.1,3.682]
[1750959162557,7.71441346,2425.2,2425.1,3.682]
[1750959162892,9.97640252,2425.2,2425.1,3.682]
[1750959163192,0.2056,2425.1,2425.0,3.682]
[1750959163362,9.97640252,2425.2,2425.0,3.682]
[1750959163760,14.09979053,2425.2,2425.0,3.682]
[1750959163961,0.98741346,2425.1,2425.0,3.682]
[1750959164158,2.48820793,2425.1,2425.0,3.682]
[1750959164362,3.47562139,2425.1,2425.0,3.682]
[1750959164665,2.48820793,2425.1,2425.0,3.682]
[1750959164876,3.47562139,2425.1,2425.0,3.682]
[1750959165072,0.98741346,2425.1,2425.0,3.682]
[1750959166297,16.38555032,2425.1,2425.0,3.682]
[1750959166498,18.17029012,2425.1,2425.0,3.682]
[1750959166709,18.72029012,2425.1,2425.0,3.682]
[1750959168767,14.59674883,2425.1,2425.0,3.682]
[1750959168971,14.59674883,2425.1,2424.9,0.002]
[1750959168972,21.32474883,2425.1,2424.9,0.002]
[1750959169193,12.98922815,2425.0,2424.9,0.002]
[1750959169669,13.97443731,2425.0,2424.9,0.002]
[1750959170088,20.70243731,2425.0,2424.9,0.002]
[1750959174890,20.70243731,2425.0,2424.9,3.684]
[1750959175702,26.18294865,2425.0,2424.9,0.002]
[1750959179519,22.05923731,2425.0,2424.9,0.002]
[1750959180314,20.70243731,2425.0,2424.9,0.002]
[1750959180517,17.71320916,2425.0,2424.9,0.002]
[1750959181400,0.98520916,2425.0,2424.9,4.4396]
[1750959181719,6.728,2425.0,2424.9,4.4396]
[1750959182884,0.2056,2425.3,2424.9,4.4396]
[1750959183216,0.2056,2425.3,2425.1,0.7556]
[1750959183513,6.728,2425.2,2425.1,0.7556]
[1750959184186,6.728,2425.2,2425.1,1.19956]
[1750959184386,0.98520916,2425.8,2425.2,0.7556]
[1750959184615,3.50237631,2426.4,2425.2,0.7556]
[1750959184616,6.728,2425.9,2425.4,0.7556]
[1750959184816,0.98520916,2425.8,2425.5,3.682]
[1750959185115,0.98520916,2425.8,2425.6,0.8024]
[1750959185284,6.728,2425.9,2425.6,0.8024]
[1750959185704,0.98520916,2426.0,2425.6,0.8024]
[1750959185705,6.728,2426.0,2425.6,0.8024]
[1750959185940,6.727,2426.0,2425.6,0.8024]
[1750959186145,0.98520916,2426.2,2425.7,0.8024]
[1750959186345,6.727,2426.2,2425.8,3.682]
[1750959188843,10.0,2426.1,2425.8,3.682]
[1750959189057,10.8287,2426.1,2425.9,3.682]
[1750959189642,14.95056573,2426.1,2425.9,3.682]
[1750959189941,10.8287,2426.1,2425.9,3.682]
[1750959190142,2.16774525,2426.0,2425.9,3.682]
[1750959193159,16.83975679,2426.0,2425.9,3.682]
[1750959193360,12.71774525,2426.0,2425.9,3.682]
[1750959193563,6.726,2426.1,2425.9,4.4439]
[1750959194529,7.70853308,2426.1,2425.9,4.4439]
[1750959194970,6.726,2426.1,2425.9,4.4439]
[1750959195679,1.6726,2426.0,2425.9,4.4439]
[1750959195838,6.726,2426.1,2425.9,4.4439]
[1750959198669,16.726,2426.1,2426.0,3.682]
[1750959199174,16.735,2426.1,2426.0,3.682]
[1750959200068,16.9396,2426.1,2426.0,4.4987]
[1750959202145,0.2056,2426.1,2426.0,4.4987]
[1750959202365,6.9386,2426.1,2426.0,4.94857]
[1750959202557,6.9386,2426.1,2426.0,4.4987]
[1750959204401,6.733,2426.1,2426.0,4.4987]
[1750959204582,0.2056,2426.2,2426.0,4.4987]
[1750959204758,6.9366,2426.2,2426.1,0.7678]
[1750959205566,6.732,2426.3,2426.1,0.7678]
[1750959206745,0.2056,2426.5,2426.1,1.23334]
[1750959206945,6.732,2426.4,2426.2,0.7525]
[1750959208693,6.9356,2426.5,2426.2,0.7525]
[1750959210587,6.9356,2426.5,2426.3,3.682]
[1750959210797,16.9356,2426.5,2426.4,3.682]
[1750959211297,18.62916,2426.5,2426.4,3.682]
[1750959211604,19.61401469,2426.5,2426.4,3.682]
[1750959212310,17.91545469,2426.5,2426.4,3.682]
[1750959214407,17.91650384,2426.5,2426.4,3.682]
[1750959215694,17.91650384,2426.5,2426.4,4.4933]
[1750959217118,17.91650384,2426.5,2426.4,3.682]
[1750959218417,16.9306,2426.5,2426.4,3.682]
[1750959223924,20.36971753,2426.5,2426.4,3.682]
[1750959224424,12.88431753,2426.5,2426.4,3.682]
[1750959224630,19.60831753,2426.5,2426.4,3.682]
[1750959229115,17.91525753,2426.5,2426.4,3.682]
[1750959229317,11.19125753,2426.5,2426.4,3.682]
[1750959229536,16.9296,2426.5,2426.4,3.682]
[1750959229812,17.91525753,2426.5,2426.4,3.682]
[1750959232449,11.19125753,2426.5,2426.4,3.682]
[1750959232621,17.91425753,2426.5,2426.4,3.682]
[1750959235248,7.91425753,2426.5,2426.4,3.682]
[1750959235627,17.91425753,2426.5,2426.4,3.682]
[1750959238762,7.91425753,2426.5,2426.4,3.682]
[1750959241371,9.47618328,2426.5,2426.4,3.682]
[1750959241590,19.47618328,2426.5,2426.4,3.682]
[1750959242569,23.59734544,2426.5,2426.4,3.682]
[1750959242780,19.47618328,2426.5,2426.4,3.682]
[1750959242975,23.59734544,2426.5,2426.4,3.682]
[1750959243272,28.5838547,2426.5,2426.4,3.682]
[1750959243475,32.70501686,2426.5,2426.4,3.682]
[1750959246056,10.55,2426.4,2425.8,3.682]
[1750959246254,10.55,2426.4,2425.6,1.744]
[1750959246255,10.0,2426.2,2425.9,3.682]
[1750959246459,7.70865753,2426.1,2425.9,3.682]
[1750959246670,6.723,2426.0,2425.9,3.682]
[1750959247946,7.70865753,2426.0,2425.9,3.682]
[1750959248255,6.723,2426.0,2425.9,3.682]
[1750959248961,7.70865753,2426.0,2425.9,3.682]
[1750959249135,6.723,2426.0,2425.9,3.682]
[1750959250182,0.98565753,2426.1,2426.0,0.83]
[1750959250378,6.9286,2426.1,2426.0,0.83]
[1750959251078,7.91425753,2426.1,2426.0,0.83]
[1750959251282,7.91425753,2426.1,2425.9,3.682]
[1750959251283,6.9286,2426.1,2425.9,3.682]
[1750959251436,6.723,2426.1,2425.9,3.682]
[1750959251640,0.2056,2426.0,2425.9,3.682]
[1750959252379,1.67851753,2426.0,2425.8,3.682]
[1750959252553,0.98565753,2425.9,2425.8,3.682]
[1750959253050,20.33282895,2425.9,2425.8,3.682]
[1750959253572,10.7895,2425.9,2425.8,3.682]
[1750959253985,16.723,2425.9,2425.8,3.682]
[1750959254289,6.723,2425.9,2425.8,4.12841]
[1750959255547,6.723,2425.9,2425.8,3.682]
[1750959260488,16.723,2425.9,2425.8,3.682]
[1750959260657,30.72835287,2425.9,2425.8,3.682]
[1750959261898,0.55,2425.7,2425.3,0.002]
[1750959262230,0.2056,2425.4,2425.3,0.002]
[1750959262640,6.723,2425.7,2425.3,0.7855]
[1750959263212,6.723,2425.7,2425.3,1.03835]
[1750959263817,6.723,2425.7,2425.3,0.7855]
[1750959265909,4.89478473,2426.2,2425.3,0.7855]
[1750959266114,10.0,2426.0,2425.3,4.4675]
[1750959267526,6.738,2425.9,2425.3,4.4675]
[1750959267706,9.57222777,2425.9,2425.3,4.4675]
[1750959267906,0.98612777,2425.8,2425.3,4.4675]
[1750959268106,7.72412777,2425.9,2425.3,4.4675]
[1750959268304,0.98612777,2425.8,2425.3,4.4675]
[1750959269748,0.98612777,2425.8,2425.4,3.682]
[1750959270111,0.98612777,2425.8,2425.4,4.12875]
[1750959271119,6.739,2425.8,2425.5,0.7921]
[1750959272414,6.739,2425.8,2425.6,3.682]
[1750959272621,0.2056,2425.8,2425.6,3.682]
[1750959275620,0.2056,2425.8,2425.7,3.682]
[1750959276154,0.98612777,2425.9,2425.7,4.90781]
[1750959276364,10.0,2426.0,2425.7,4.4604]
[1750959276556,10.98612777,2426.0,2425.7,4.4604]
[1750959277059,0.98612777,2426.0,2425.7,4.4604]
[1750959277367,0.98612777,2426.0,2425.8,0.4666]
[1750959277548,0.98612777,2426.0,2425.9,3.682]
[1750959280372,0.2056,2426.1,2425.9,3.682]
[1750959280682,11.19172777,2426.1,2425.9,3.682]
[1750959281365,11.19172777,2426.1,2426.0,3.682]
[1750959283973,1.19172777,2426.1,2426.0,3.682]
[1750959284164,6.728,2426.1,2426.0,4.8794]
[1750959287501,6.728,2426.1,2426.0,4.5112]
[1750959288793,7.5028,2426.1,2426.0,3.682]
[1750959289001,18.48892777,2426.1,2426.0,3.682]
[1750959290588,22.6107694,2426.1,2426.0,3.682]
[1750959290788,18.48892777,2426.1,2426.0,3.682]
[1750959291101,22.01792758,2426.1,2426.0,3.682]
[1750959292009,26.13976921,2426.1,2426.0,3.682]
[1750959293284,0.2056,2426.0,2425.5,3.682]
[1750959293485,0.2056,2425.7,2425.5,3.682]
[1750959293808,6.727,2425.6,2425.5,3.682]
[1750959294702,7.58143278,2425.6,2425.5,3.682]
[1750959295576,8.56756055,2425.6,2425.5,3.682]
[1750959295976,8.56756055,2425.6,2425.3,0.002]
[1750959295977,0.2056,2425.5,2425.3,0.002]
[1750959296206,8.56756055,2425.6,2425.3,0.002]
[1750959299272,8.56756055,2425.6,2425.3,3.684]
[1750959299468,0.67236249,2425.5,2425.3,3.684]
[1750959300199,1.65849026,2425.5,2425.3,3.684]
[1750959300580,6.725,2425.4,2425.3,3.684]
[1750959301005,6.725,2425.4,2425.3,0.002]
[1750959301791,0.98612777,2425.5,2425.3,3.684]
[1750959302134,6.725,2425.4,2425.3,3.684]
[1750959302818,6.9306,2425.4,2425.3,3.684]
[1750959303923,6.725,2425.4,2425.3,4.4722]
[1750959304393,6.9306,2425.5,2425.3,4.4722]
[1750959304816,0.2056,2425.5,2425.3,4.4722]
[1750959304999,6.9306,2425.5,2425.3,4.4722]
[1750959305201,6.9306,2425.5,2425.3,0.7902]
[1750959305408,0.2056,2425.5,2425.3,0.7902]
[1750959309123,0.7706,2425.4,2425.3,0.002]
[1750959309657,1.7567686,2425.4,2425.3,0.002]
[1750959309797,0.7706,2425.4,2425.3,0.002]
[1750959311020,0.7706,2425.4,2425.3,3.684]
[1750959311856,1.51748401,2425.4,2425.3,3.684]
[1750959312555,11.51748401,2425.4,2425.3,3.684]
[1750959312718,12.50347158,2425.4,2425.3,3.684]
[1750959315931,17.17650283,2425.4,2425.3,3.684]
[1750959316542,13.05347158,2425.4,2425.3,3.684]
[1750959316948,13.05347158,2425.4,2425.3,0.002]
[1750959317171,17.17650283,2425.4,2425.3,0.002]
[1750959318152,13.05347158,2425.4,2425.3,0.002]
[1750959318452,12.50347158,2425.4,2425.3,0.002]
[1750959318858,19.22947158,2425.4,2425.3,0.002]
[1750959320262,19.23008299,2425.4,2425.3,0.002]
[1750959320436,18.45948299,2425.4,2425.3,0.002]
[1750959323069,11.73348299,2425.4,2425.3,0.002]
[1750959323267,18.45948299,2425.4,2425.3,0.002]
[1750959323968,10.98659898,2425.4,2425.3,0.7942]
[1750959324266,16.9316,2425.4,2425.3,0.7942]
[1750959324436,17.91819898,2425.4,2425.3,0.7942]
[1750959326443,1.19219898,2425.4,2425.3,0.7942]
[1750959326640,0.2056,2425.7,2425.4,0.7549]
[1750959326840,7.71259898,2425.6,2425.4,0.7549]
[1750959327070,6.726,2425.6,2425.4,0.7549]
[1750959327574,0.98659898,2425.8,2425.6,0.7883]
[1750959327783,0.98659898,2426.2,2426.1,0.7883]
[1750959327941,0.98659898,2426.6,2426.1,14.77097142]
[1750959328146,0.98659898,2426.5,2426.3,0.2056]
[1750959328342,0.98659898,2426.4,2426.3,0.2056]
[1750959328669,0.98659898,2426.8,2426.6,0.2056]
[1750959328870,6.9326,2427.0,2426.7,3.682]
[1750959329086,0.98659898,2426.9,2426.8,0.7883]
[1750959329288,6.9326,2427.0,2426.8,0.7883]
[1750959329945,6.9326,2427.0,2426.7,3.682]
[1750959330145,7.5189199,2427.0,2426.7,3.682]
[1750959330463,0.2056,2426.8,2426.7,3.682]
[1750959330852,4.32625271,2426.8,2426.7,3.682]
[1750959331062,5.30985846,2426.8,2426.7,3.682]
[1750959331266,4.12088982,2426.7,2426.1,0.7883]
[1750959331464,7.67107483,2426.6,2425.9,4.5135]
[1750959331666,0.2056,2426.3,2425.9,4.5135]
[1750959331845,6.9346,2426.3,2425.9,4.5135]
[1750959332579,6.729,2426.3,2425.9,3.682]
[1750959332777,0.2056,2425.9,2425.8,3.682]
[1750959332947,0.2056,2425.8,2425.6,4.4356]
[1750959333147,6.728,2425.9,2425.5,3.682]
[1750959333347,0.2056,2425.6,2425.5,3.682]
[1750959338070,0.2056,2426.0,2425.5,3.8876]
[1750959338301,0.2056,2426.0,2425.6,0.38876]
[1750959338616,6.725,2426.2,2425.8,0.8252]
[1750959338772,6.9306,2426.2,2425.8,1.0308]
[1750959340400,6.726,2426.5,2425.9,3.682]
[1750959340590,0.98224816,2426.8,2426.1,0.7942]
[1750959340794,10.2056,2426.6,2426.1,0.9998]
[1750959340998,10.2056,2426.6,2426.1,1.46798]
[1750959341574,0.2056,2426.6,2426.2,3.682]
[1750959341798,0.2056,2426.8,2426.3,2.7438]
[1750959346618,0.2056,2426.8,2426.4,3.682]
[1750959346913,0.2056,2426.8,2426.5,4.32458]
[1750959347114,0.2056,2426.8,2426.5,3.682]
[1750959349219,0.2056,2426.8,2426.6,3.682]
[1750959349400,0.2056,2426.9,2426.6,3.682]
[1750959352508,0.2056,2426.9,2426.7,3.682]
[1750959352900,0.2056,2426.9,2426.7,4.4941]
[1750959354632,0.2056,2426.9,2426.7,3.682]
[1750959355128,1.10733573,2426.9,2426.7,3.682]
[1750959355648,1.92553573,2426.9,2426.7,3.682]
[1750959355832,10.0,2426.8,2426.7,3.682]
[1750959356122,11.92553573,2426.9,2426.7,3.682]
[1750959356304,2.17684459,2426.8,2426.7,3.682]
[1750959357816,8.90084459,2426.8,2426.7,3.682]
[1750959358122,7.91655357,2426.8,2426.7,3.682]
[1750959359126,17.91655357,2426.8,2426.7,3.682]
[1750959359322,18.90084459,2426.8,2426.7,3.682]
[1750959360513,16.9276,2426.8,2426.7,3.682]
[1750959360709,6.9276,2426.8,2426.7,3.682]
[1750959361322,6.722,2426.9,2426.7,3.682]
[1750959361642,1.19038654,2427.0,2426.7,3.682]
[1750959361813,6.9276,2427.0,2426.7,3.682]
[1750959362143,10.0,2426.9,2426.7,3.682]
[1750959363349,0.2056,2427.0,2426.7,3.682]
[1750959363512,6.9276,2427.0,2426.7,3.682]
[1750959364225,6.9276,2427.0,2426.8,3.682]
[1750959365339,0.2056,2427.0,2426.8,3.682]
[1750959365648,0.2056,2427.0,2426.9,3.682]
[1750959365827,16.9276,2427.1,2426.9,3.682]
[1750959366036,0.98459766,2427.0,2426.9,3.682]
[1750959377733,17.65423057,2427.0,2426.9,3.682]
[1750959377962,13.53391743,2427.0,2426.9,3.682]
[1750959378470,18.46369766,2427.0,2426.9,3.682]
[1750959378764,0.98459766,2427.0,2426.9,3.682]
[1750959379062,6.9266,2427.0,2426.9,3.682]
[1750959379445,7.91119766,2427.0,2426.9,3.682]
[1750959379641,0.98459766,2427.2,2426.9,3.682]
[1750959379854,7.70559766,2427.1,2426.9,3.682]
[1750959380057,7.70559766,2427.1,2426.9,4.32733]
[1750959380245,0.98459766,2427.1,2426.9,4.32733]
[1750959380857,0.98459766,2427.0,2426.9,4.32733]